bitfinex/quotes_ETHUSD_20250130
["timestamp","ask_amount","ask_price","bid_price","bid_amount"]
[1738274423601,3.08105,3245.7,3245.5,2.88785162]
[1738274424243,3.08105,3245.7,3245.6,0.55]
[1738274424748,3.08116,3245.6,3245.4,0.55]
[1738274425150,3.08098,3245.8,3245.4,0.55]
[1738274425310,3.08102,3245.7,3245.4,0.55]
[1738274425511,3.0811,3245.6,3245.4,0.55]
[1738274425707,3.08102,3245.7,3245.4,0.55]
[1738274426028,3.08118,3245.5,3245.3,0.55]
[1738274426630,6.16209,3245.7,3245.3,0.55]
[1738274427436,3.0811,3245.6,3245.3,0.55]
[1738274429634,3.0811,3245.6,3245.2,0.55]
[1738274430850,3.0811,3245.6,3245.1,0.5575]
[1738274431155,3.08122,3245.5,3245.1,3.68748842]
[1738274431356,3.0811,3245.6,3245.1,3.68748842]
[1738274431513,3.0811,3245.6,3245.1,0.5575]
[1738274432653,3.08094,3245.8,3245.3,0.55]
[1738274432828,3.081,3245.7,3245.3,0.55]
[1738274433036,3.08111,3245.6,3245.1,0.5575]
[1738274433213,3.08111,3245.6,3245.1,3.63897]
[1738274433413,3.08111,3245.6,3245.3,0.55]
[1738274436421,3.08111,3245.6,3245.2,0.73309899]
[1738274436620,3.08111,3245.6,3245.3,0.55]
[1738274440123,3.08128,3245.4,3245.3,0.55]
[1738274440324,3.0816,3245.1,3244.6,6.17283162]
[1738274440660,3.0816,3245.1,3244.7,3.565]
[1738274440860,6.16288,3245.3,3244.7,6.64694]
[1738274441551,3.08141,3245.3,3244.9,0.55]
[1738274441751,6.16285,3245.3,3244.9,0.55]
[1738274442139,3.08153,3245.2,3244.9,0.55]
[1738274443861,3.08159,3245.1,3244.9,0.55]
[1738274444047,3.08153,3245.2,3244.9,0.55]
[1738274444247,3.08153,3245.2,3244.8,0.55]
[1738274445367,3.08166,3245.0,3244.8,0.55]
[1738274445716,3.08166,3245.0,3244.5,3.565]
[1738274445971,3.08166,3245.0,3244.5,7.66918259]
[1738274446270,3.86815,3245.1,3244.5,4.57205259]
[1738274446438,3.0818,3244.9,3244.5,5.17522317]
[1738274446769,3.0818,3244.9,3244.5,2.17522317]
[1738274447727,3.86815,3245.1,3244.5,5.25735317]
[1738274447955,3.0817,3245.0,3244.5,5.25735317]
[1738274450038,3.0817,3245.0,3244.5,40.25735317]
[1738274450598,3.86815,3245.1,3244.5,37.17522317]
[1738274450871,3.08181,3244.9,3244.5,37.17522317]
[1738274451469,3.08181,3244.9,3244.5,2.17522317]
[1738274456639,3.08181,3244.9,3244.6,1.48191312]
[1738274459109,3.8681,3245.1,3244.6,1.48191312]
[1738274459314,3.0816,3245.1,3244.9,0.55]
[1738274460305,3.08167,3245.0,3244.9,0.55]
[1738274462067,0.7711,3245.3,3244.9,0.55]
[1738274462373,3.08135,3245.4,3245.2,0.55]
[1738274462807,3.08135,3245.4,3244.9,2.03191312]
[1738274462808,3.08137,3245.3,3244.9,2.03191312]
[1738274463006,3.08157,3245.1,3244.9,0.55]
[1738274463314,3.08166,3245.0,3244.9,0.55]
[1738274463513,3.08166,3245.0,3244.8,0.55]
[1738274464216,3.08161,3245.1,3244.8,0.55]
[1738274465386,3.08156,3245.2,3244.8,0.55]
[1738274465590,3.08169,3245.0,3244.8,0.55]
[1738274472924,3.08169,3245.0,3244.9,0.2873731]
[1738274473654,3.0815,3245.2,3245.0,0.55]
[1738274473809,6.16306,3245.2,3245.0,0.55]
[1738274474010,3.08156,3245.1,3245.0,0.55]
[1738274475172,3.08156,3245.1,3245.0,0.8373731]
[1738274490297,6.01107912,3245.1,3245.0,0.2873731]
[1738274490658,9.03402589,3245.1,3245.0,3.1e-06]
[1738274490901,9.01107912,3245.1,3245.0,3.1e-06]
[1738274491201,9.00453672,3245.1,3245.0,3.1e-06]
[1738274491401,3.0828,3243.8,3243.7,5.32]
[1738274491553,3.08308,3243.5,3243.4,1.72522439]
[1738274491908,3.08308,3243.5,3243.4,0.86275135]
[1738274492120,3.08318,3243.4,3243.3,0.60637996]
[1738274492316,3.08318,3243.4,3243.3,0.05637996]
[1738274492960,3.08354,3243.1,3242.8,5.32]
[1738274493165,3.08356,3243.0,3242.8,5.32]
[1738274493366,3.08354,3243.1,3242.8,5.32]
[1738274493367,3.08365,3242.9,3242.8,5.32]
[1738274493816,3.08365,3242.9,3242.7,11.44660281]
[1738274493817,3.08375,3242.8,3242.7,3.22718315]
[1738274495068,3.08375,3242.8,3242.7,0.55]
[1738274495497,3.08375,3242.8,3242.3,0.62265616]
[1738274495668,3.88165,3242.9,3242.3,4.37755378]
[1738274495669,3.08365,3242.9,3242.3,4.37755378]
[1738274495874,3.08365,3242.9,3242.4,0.55]
[1738274499171,3.08365,3242.9,3242.4,3.63412]
[1738274500599,3.08347,3243.1,3242.6,0.55]
[1738274500914,3.08347,3243.1,3242.6,3.63393]
[1738274501211,3.08347,3243.1,3242.5,0.55]
[1738274501416,3.08347,3243.1,3242.5,3.63402]
[1738274502477,3.08338,3243.2,3242.7,0.55]
[1738274502826,0.799,3244.0,3242.8,0.0075]
[1738274503115,3.08292,3243.7,3243.2,0.55]
[1738274503302,3.08287,3243.8,3243.2,0.55]
[1738274503501,3.08287,3243.8,3243.3,3.08327]
[1738274503821,3.08243,3244.2,3243.7,0.55]
[1738274504027,3.85056,3244.6,3243.7,0.55]
[1738274504208,3.08206,3244.6,3243.9,0.55]
[1738274504422,5.35,3245.7,3243.6,3.0]
[1738274504423,0.7587,3245.5,3244.8,0.55]
[1738274504709,3.0812,3245.5,3245.0,3.63165]
[1738274505073,3.08104,3245.7,3245.0,3.63165]
[1738274505270,3.08126,3245.5,3244.9,0.5575]
[1738274505821,3.08126,3245.5,3244.9,3.63924]
[1738274508394,3.0813,3245.4,3244.9,3.63924]
[1738274508716,3.08126,3245.5,3244.9,0.55]
[1738274508894,3.08166,3245.0,3244.5,0.203]
[1738274509092,3.08166,3245.0,3244.5,0.565]
[1738274509289,6.16303,3245.2,3244.5,3.85013]
[1738274509622,3.08158,3245.1,3244.5,3.85013]
[1738274513237,0.7587,3245.8,3245.0,0.55]
[1738274513527,3.08118,3245.6,3245.1,0.55]
[1738274513883,3.0813,3245.4,3244.8,3.64681]
[1738274514228,3.08149,3245.2,3244.8,0.565]
[1738274514728,3.08131,3245.4,3244.8,0.565]
[1738274515103,3.08131,3245.4,3244.8,3.64676]
[1738274515297,3.08131,3245.4,3245.0,0.55]
[1738274515504,3.08131,3245.4,3244.9,0.55]
[1738274516246,3.08138,3245.3,3244.9,0.55]
[1738274517145,3.08138,3245.3,3244.8,0.218]
[1738274517553,3.08138,3245.3,3244.8,0.015]
[1738274517747,3.08138,3245.3,3244.9,0.0075]
[1738274518302,3.08149,3245.2,3244.9,0.0075]
[1738274518651,3.08149,3245.2,3244.5,10.81884816]
[1738274518652,0.8163,3245.2,3244.5,7.73675816]
[1738274518837,3.082,3244.7,3244.5,7.73675816]
[1738274519053,3.082,3244.7,3244.2,0.0075]
[1738274519054,3.08212,3244.6,3244.2,0.0075]
[1738274519353,3.08212,3244.6,3244.2,0.5575]
[1738274519549,3.08216,3244.5,3244.0,5.32]
[1738274519756,3.08216,3244.5,3244.1,0.2105]
[1738274519960,3.08216,3244.5,3244.0,6.45100938]
[1738274520161,3.08244,3244.2,3244.0,5.32]
[1738274520461,3.08244,3244.2,3244.1,0.55]
[1738274520642,3.08244,3244.2,3244.0,5.32]
[1738274520842,3.08236,3244.3,3244.0,5.32]
[1738274521148,3.08236,3244.3,3244.1,0.55]
[1738274521651,3.08228,3244.4,3244.1,0.55]
[1738274521857,3.89836,3244.6,3244.1,0.55]
[1738274522067,3.08216,3244.5,3244.1,0.55]
[1738274524069,3.08234,3244.3,3244.1,5.87]
[1738274525043,3.08242,3244.2,3244.1,5.87]
[1738274526628,3.08242,3244.2,3244.1,5.32]
[1738274527167,3.08242,3244.2,3244.1,5.87]
[1738274527546,3.08242,3244.2,3244.1,0.55]
[1738274529879,3.08219,3244.5,3244.2,0.55]
[1738274530178,6.1644,3244.5,3243.9,0.83676269]
[1738274530357,3.08219,3244.5,3243.9,3.91944269]
[1738274530770,3.08224,3244.4,3243.9,3.91944269]
[1738274530925,3.08242,3244.2,3243.9,0.83676269]
[1738274531131,3.08261,3244.0,3243.9,0.83676269]
[1738274534331,3.08261,3244.0,3243.9,0.28676269]
[1738274534647,3.83771,3244.0,3243.9,0.28676269]
[1738274535135,3.08289,3243.7,3243.6,0.28676269]
[1738274535334,3.85069,3243.7,3243.6,0.28676269]
[1738274536536,3.08337,3243.2,3243.1,0.28676269]
[1738274536771,3.86097,3243.2,3243.1,0.28676269]
[1738274537091,3.86097,3243.2,3243.1,0.83676269]
[1738274537779,3.86097,3243.2,3243.1,0.55]
[1738274538675,3.86097,3243.2,3242.7,0.28676269]
[1738274538676,3.08375,3242.8,3242.7,0.28676269]
[1738274539048,3.08375,3242.8,3242.7,0.55]
[1738274547479,3.85055,3242.8,3242.7,0.55]
[1738274547686,3.85055,3242.8,3242.6,5.32]
[1738274547687,3.08384,3242.7,3242.6,5.32]
[1738274547866,3.80022577,3242.7,3242.6,5.32]
[1738274548174,0.02294677,3242.7,3242.1,5.87]
[1738274548377,6.16778,3242.7,3242.1,5.87]
[1738274548598,3.084,3242.6,3242.1,8.95436]
[1738274548911,3.08409,3242.5,3242.1,5.87]
[1738274549275,3.08409,3242.5,3242.3,0.55]
[1738274549579,3.08408,3242.5,3242.3,0.55]
[1738274549787,3.08413,3242.4,3242.3,0.55]
[1738274549966,0.7668,3243.1,3242.1,5.32]
[1738274550175,3.08432,3242.2,3242.1,5.32]
[1738274550370,3.08432,3242.3,3242.1,5.87]
[1738274550685,3.08432,3242.2,3242.1,5.87]
[1738274553086,3.08418,3242.4,3242.1,5.87]
[1738274553309,3.08398,3242.6,3242.2,0.55]
[1738274554285,3.08375,3242.8,3242.3,0.0075]
[1738274554622,3.08362,3243.0,3242.4,0.55]
[1738274554783,6.16685,3243.2,3242.6,0.55]
[1738274554972,3.08349,3243.1,3242.6,0.55]
[1738274555315,3.08341,3243.2,3242.7,0.0075]
[1738274555474,3.08324,3243.4,3242.9,0.55]
[1738274555680,3.08324,3243.4,3242.9,5.87]
[1738274556181,6.1665,3243.4,3242.9,5.87]
[1738274556387,3.08324,3243.4,3242.9,5.87]
[1738274556585,3.08328,3243.3,3242.9,5.87]
[1738274557015,3.08328,3243.3,3243.0,0.28707014]
[1738274559118,3.08346,3243.1,3243.0,0.28707014]
[1738274559820,3.90426,3243.1,3243.0,0.28707014]
[1738274560026,3.92720677,3243.1,3243.0,0.28707014]
[1738274560422,3.08432,3242.2,3241.9,5.32]
[1738274560730,3.08451,3242.0,3241.9,5.32]
[1738274562025,3.08451,3242.0,3241.9,6.15799147]
[1738274562226,3.701393,3242.0,3241.9,0.28799147]
[1738274562525,4.496893,3242.0,3241.9,0.28799147]
[1738274564326,3.0848,3241.7,3241.6,0.83799147]
[1738274565932,3.0848,3241.7,3241.6,0.28799147]
[1738274570282,3.8747,3241.7,3241.6,0.28799147]
[1738274570504,4.88140468,3241.7,3241.6,0.28799147]
[1738274572199,4.88140468,3241.7,3241.1,0.28799147]
[1738274572539,3.0851,3241.4,3241.2,0.55]
[1738274574532,3.08518,3241.3,3241.2,0.55]
[1738274575326,3.08518,3241.3,3240.9,5.32]
[1738274575553,3.08546,3241.0,3240.9,5.32]
[1738274575692,3.08536,3241.2,3241.0,0.83763029]
[1738274575693,3.08537,3241.1,3241.0,0.83763029]
[1738274577033,3.08536,3241.2,3241.0,0.83763029]
[1738274577727,3.08536,3241.2,3241.0,0.28763029]
[1738274577933,3.08537,3241.1,3241.0,0.28763029]
[1738274580658,3.08537,3241.1,3240.8,0.28763029]
[1738274580860,3.08556,3240.9,3240.8,0.28763029]
[1738274581357,3.10850677,3240.9,3240.8,0.28763029]
[1738274581715,3.89670677,3240.9,3240.8,0.28763029]
[1738274581929,4.88051368,3240.9,3240.8,0.28763029]
[1738274582353,3.08603,3240.5,3240.3,0.55]
[1738274582716,3.08603,3240.4,3240.2,0.28763029]
[1738274583257,3.08603,3240.4,3240.3,0.55]
[1738274584866,3.0858,3240.7,3240.3,0.55]
[1738274585080,3.08585,3240.6,3240.3,0.55]
[1738274587790,3.08585,3240.6,3240.3,0.83763029]
[1738274588091,3.08596,3240.5,3240.3,0.83763029]
[1738274589675,3.08596,3240.5,3240.4,0.83763029]
[1738274592290,0.8112,3241.5,3240.5,0.55]
[1738274592493,3.89625,3241.5,3241.0,0.55]
[1738274592697,3.08505,3241.5,3241.0,3.63545]
[1738274593046,3.08505,3241.5,3241.1,0.28763029]
[1738274593493,0.4992,3241.7,3241.1,0.28763029]
[1738274593700,3.08506,3241.5,3241.1,0.28763029]
[1738274594524,6.17012,3241.5,3241.1,0.28763029]
[1738274594729,6.17012,3241.5,3241.3,0.55]
[1738274594730,3.08506,3241.5,3241.3,0.55]
[1738274596826,3.08506,3241.5,3241.4,0.83763029]
[1738274599794,3.751971,3241.5,3241.4,0.28763029]
[1738274601438,3.08506,3241.5,3241.4,0.28763029]
[1738274608462,3.08506,3241.5,3241.4,0.83763029]
[1738274613339,3.08506,3241.5,3241.4,0.28763029]
[1738274613667,3.88116,3241.5,3241.4,0.28763029]
[1738274616751,3.08506,3241.5,3241.4,0.28763029]
[1738274637492,3.08506,3241.5,3241.4,0.75041002]
[1738274641596,4.647905,3241.5,3241.4,0.75041002]
[1738274645660,3.08506,3241.5,3241.4,0.75041002]
[1738274646161,3.08506,3241.5,3241.4,0.28763029]
[1738274661657,3.85066,3241.5,3241.4,0.28763029]
[1738274664453,3.08506,3241.5,3241.4,0.28763029]
[1738274672316,6.93190677,3241.5,3241.4,0.28763029]
[1738274672539,8.10908578,3241.5,3241.4,0.28763029]
[1738274673248,3.08553,3241.0,3240.5,0.55]
[1738274674871,3.08553,3241.0,3240.6,0.28901659]
[1738274676571,3.08553,3241.0,3240.7,0.28901659]
[1738274677089,3.08557,3240.9,3240.7,0.28901659]
[1738274677987,3.08557,3240.9,3240.8,0.28901659]
[1738274681243,3.08557,3240.9,3240.8,0.91606136]
[1738274683888,3.10851677,3240.9,3240.8,0.28901659]
[1738274684045,4.528545,3240.9,3240.8,0.28901659]
[1738274685343,3.08557,3240.9,3240.8,0.28901659]
[1738274688604,3.08572,3240.8,3240.5,0.61827923]
[1738274690696,3.08572,3240.8,3240.6,0.28870974]
[1738274692289,3.08572,3240.8,3240.7,0.28870974]
[1738274695701,5.399281,3240.8,3240.7,0.28870974]
[1738274695901,6.2477661,3240.8,3240.7,0.28870974]
[1738274696060,4.7625051,3240.8,3240.7,0.28870974]
[1738274699376,3.9342051,3240.8,3240.7,0.28870974]
[1738274699592,3.08572,3240.8,3240.7,0.28870974]
[1738274700166,5.42222777,3240.8,3240.7,0.28870974]
[1738274700674,5.399281,3240.8,3240.7,0.28870974]
[1738274708794,3.08572,3240.8,3240.7,0.28870974]
[1738274721165,3.08549,3241.0,3240.7,0.83870974]
[1738274721402,3.08532,3241.2,3240.7,0.83870974]
[1738274721665,3.08539,3241.1,3240.7,1.37969481]
[1738274722330,3.08539,3241.1,3240.8,0.28870974]
[1738274723163,0.7523,3241.4,3240.8,0.28870974]
[1738274723315,6.17064,3241.2,3240.8,0.28870974]
[1738274723515,3.0852,3241.3,3240.8,0.28870974]
[1738274724027,3.0852,3241.3,3240.8,0.68115271]
[1738274724273,3.08516,3241.4,3240.9,0.55]
[1738274724459,3.08516,3241.4,3240.9,0.83870974]
[1738274725571,3.08493,3241.6,3240.9,0.83870974]
[1738274725781,3.08506,3241.5,3240.9,0.83870974]
[1738274725981,3.08508,3241.4,3241.0,0.72038301]
[1738274726532,3.08493,3241.6,3241.1,0.55]
[1738274727473,3.08493,3241.6,3241.1,0.83870974]
[1738274728047,3.08502,3241.5,3241.1,0.83870974]
[1738274728676,3.08493,3241.6,3241.1,0.83870974]
[1738274728884,3.08493,3241.6,3241.2,0.28870974]
[1738274729083,0.4992,3241.7,3241.2,0.28870974]
[1738274729376,3.58405,3241.7,3241.2,0.28870974]
[1738274730047,3.08497,3241.6,3241.2,0.28870974]
[1738274730438,3.08497,3241.6,3241.3,0.28870974]
[1738274731698,3.08497,3241.6,3241.4,0.28870974]
[1738274732202,0.07870429,3241.5,3241.4,0.28870974]
[1738274733756,3.08497,3241.6,3241.4,0.28870974]
[1738274734618,0.4992,3241.7,3241.4,0.28870974]
[1738274734759,0.07879921,3241.6,3241.4,0.28870974]
[1738274735252,0.07879921,3241.6,3241.5,0.28870974]
[1738274735956,0.07879921,3241.6,3241.5,0.83870974]
[1738274736172,0.07879921,3241.6,3241.5,1.37961381]
[1738274737020,0.4992,3241.7,3241.5,0.83870974]
[1738274737182,0.07724552,3241.6,3241.5,0.83870974]
[1738274740794,0.07724552,3241.6,3241.5,3.92369974]
[1738274740994,0.4992,3241.7,3241.6,0.55]
[1738274741301,0.57515378,3241.7,3241.6,0.55]
[1738274741504,0.57515378,3241.7,3241.6,2.07158671]
[1738274744338,0.57515378,3241.7,3241.6,7.39158671]
[1738274748587,0.5753247,3241.7,3241.6,7.39158671]
[1738274748790,0.4992,3241.7,3241.6,7.39158671]
[1738274749001,0.5753247,3241.7,3241.6,7.39158671]
[1738274752104,0.4992,3241.7,3241.6,7.39158671]
[1738274752599,0.57536375,3241.7,3241.6,7.39158671]
[1738274752974,0.4992,3241.7,3241.6,7.39158671]
[1738274753182,0.4992,3241.7,3241.6,10.47647671]
[1738274758231,0.4992,3241.7,3241.6,10.53288624]
[1738274759123,0.4992,3241.7,3241.6,18.2696444]
[1738274759687,0.4992,3241.7,3241.6,17.98093466]
[1738274759914,0.4992,3241.7,3241.6,18.26946236]
[1738274760287,0.4992,3241.7,3241.6,53.26946236]
[1738274760528,0.4992,3241.7,3241.6,53.47146236]
[1738274761723,0.4992,3241.7,3241.6,53.26946236]
[1738274761931,0.4992,3241.7,3241.6,53.47146236]
[1738274762224,0.4992,3241.7,3241.6,53.26946236]
[1738274762388,0.4992,3241.7,3241.6,53.47146236]
[1738274769098,0.4992,3241.7,3241.6,53.26946236]
[1738274769253,0.4992,3241.7,3241.6,14.63457236]
[1738274769451,1.36349176,3241.7,3241.6,13.40169539]
[1738274769747,1.36349176,3241.7,3241.6,13.95169539]
[1738274770110,1.2869,3241.7,3241.6,13.95169539]
[1738274771050,1.2869,3241.7,3241.6,6.21493723]
[1738274773407,4.44757982,3241.7,3241.6,5.66493723]
[1738274773718,5.12722466,3241.7,3241.6,5.6085277]
[1738274774151,5.2030895,3241.7,3241.6,5.6085277]
[1738274774568,5.12722466,3241.7,3241.6,5.6085277]
[1738274774948,5.20307452,3241.7,3241.6,5.6085277]
[1738274775440,4.44754986,3241.7,3241.6,5.6085277]
[1738274775639,4.3717,3241.7,3241.6,5.6085277]
[1738274776083,3.584,3241.7,3241.6,5.6085277]
[1738274776286,0.4992,3241.7,3241.6,6.1585277]
[1738274776459,0.4992,3241.7,3241.6,7.23141157]
[1738274776658,0.4992,3241.7,3241.6,10.31630157]
[1738274776856,0.4992,3241.7,3241.6,13.3727111]
[1738274777076,0.4992,3241.7,3241.6,21.10946926]
[1738274777473,0.4992,3241.7,3241.6,56.10946926]
[1738274777971,3.08386,3242.7,3242.1,3.08441]
[1738274778172,3.08386,3242.7,3242.2,5.87]
[1738274779556,0.7821,3242.8,3242.2,8.9543]
[1738274779748,3.86589,3242.8,3242.2,10.3268971]
[1738274779951,3.86589,3242.8,3242.4,0.55]
[1738274780374,0.07355759,3242.7,3242.4,0.55]
[1738274780809,3.86589,3242.8,3242.4,0.55]
[1738274780946,0.07351849,3242.6,3242.4,0.55]
[1738274781148,3.86589,3242.8,3242.4,1.20178088]
[1738274781348,0.07347939,3242.5,3242.4,1.20178088]
[1738274781581,3.86589,3242.8,3242.4,1.20178088]
[1738274781998,0.07110574,3242.7,3242.4,1.20178088]
[1738274782184,3.86589,3242.8,3242.4,1.20178088]
[1738274782717,0.06873822,3242.7,3242.4,1.20178088]
[1738274783073,0.7821,3242.8,3242.5,0.42859409]
[1738274783275,0.751,3243.0,3242.6,0.55]
[1738274784402,0.751,3243.0,3242.8,0.55]
[1738274784602,0.751,3243.0,3242.8,5.87]
[1738274785201,3.83456,3243.0,3242.8,5.87]
[1738274785628,0.751,3243.0,3242.9,0.28827989]
[1738274786498,0.751,3243.0,3242.8,5.87]
[1738274786906,0.751,3243.0,3242.9,0.28816626]
[1738274788817,3.08354,3243.1,3242.9,0.28816626]
[1738274789929,3.08354,3243.1,3243.0,0.28816626]
[1738274791278,3.13986273,3243.1,3243.0,0.28816626]
[1738274793385,0.05632273,3243.1,3243.0,0.83816626]
[1738274795376,0.05632273,3243.1,3243.0,11.34280389]
[1738274795677,0.7618,3243.6,3243.1,3.63345]
[1738274795880,0.05494369,3243.5,3243.3,0.55]
[1738274796399,0.7618,3243.8,3243.3,3.63324]
[1738274796704,0.7618,3243.8,3243.3,6.9138501]
[1738274796705,0.05507773,3243.7,3243.3,6.9138501]
[1738274797090,0.7618,3243.8,3243.3,6.9138501]
[1738274797498,0.05513283,3243.7,3243.5,0.55]
[1738274797911,0.7618,3243.8,3243.5,0.55]
[1738274798415,0.05513283,3243.7,3243.5,0.55]
[1738274798578,0.05513283,3243.7,3243.5,3.63308]
[1738274798910,3.85526,3244.1,3243.7,0.55]
[1738274799510,0.05532267,3244.0,3243.7,0.55]
[1738274800672,0.05532267,3244.0,3243.7,5.87]
[1738274801311,0.05532267,3244.0,3243.9,3.6327]
[1738274801810,0.7655,3244.5,3244.0,3.63258]
[1738274802010,0.8245,3244.7,3244.2,0.55]
[1738274802215,0.05564756,3244.4,3244.2,0.55]
[1738274802398,0.8245,3244.7,3244.2,0.55]
[1738274802605,0.05560851,3244.3,3244.2,0.55]
[1738274802811,3.08205,3244.6,3244.2,0.55]
[1738274804316,3.08216,3244.5,3244.2,0.55]
[1738274804620,3.08223,3244.4,3244.2,0.55]
[1738274804780,0.0556342,3244.4,3244.2,0.55]
[1738274805106,3.08205,3244.6,3244.2,0.55]
[1738274805305,0.05559514,3244.3,3244.2,0.55]
[1738274805509,3.08205,3244.6,3244.2,0.55]
[1738274805682,0.05559514,3244.3,3244.2,0.55]
[1738274805882,3.08205,3244.6,3244.2,1.465453]
[1738274806128,0.05567325,3244.5,3244.0,5.32]
[1738274806283,3.08248,3244.2,3244.0,5.32]
[1738274806484,0.05551703,3244.1,3244.0,5.32]
[1738274806827,0.05551703,3244.1,3244.0,5.87]
[1738274807230,3.08248,3244.2,3244.0,5.87]
[1738274808732,6.16498,3244.2,3244.0,5.87]
[1738274809032,3.08248,3244.2,3244.0,5.87]
[1738274809188,0.05551703,3244.1,3244.0,5.87]
[1738274810130,3.08248,3244.2,3244.0,5.87]
[1738274811040,3.08248,3244.2,3244.0,5.32]
[1738274811201,3.91005677,3244.1,3244.0,5.32]
[1738274811400,3.88711,3244.1,3244.0,5.32]
[1738274811590,3.94274336,3244.1,3244.0,5.32]
[1738274812597,3.08281,3243.8,3243.2,12.0366]
[1738274813337,3.08295,3243.7,3243.2,9.55594779]
[1738274813557,3.836,3243.6,3243.2,5.92264779]
[1738274813712,3.08318,3243.4,3243.2,5.92264779]
[1738274817011,3.08319,3243.4,3243.2,5.92264779]
[1738274820096,3.08319,3243.4,3243.2,5.32]
[1738274820398,3.86317,3243.3,3243.2,5.32]
[1738274820764,4.61101605,3243.3,3243.2,5.32]
[1738274821696,3.08346,3243.1,3243.0,5.87]
[1738274821988,3.08346,3243.1,3243.0,5.65491704]
[1738274822194,3.13659189,3243.1,3243.0,5.64673992]
[1738274826196,3.08346,3243.1,3243.0,5.64673992]
[1738274827522,3.08346,3243.1,3243.0,5.09673992]
[1738274827700,3.778123,3243.1,3243.0,5.09673992]
[1738274827900,3.83072591,3243.1,3243.0,5.09673992]
[1738274830512,3.13606291,3243.1,3243.0,5.09673992]
[1738274830971,3.08346,3243.1,3243.0,5.09673992]
[1738274831407,3.1358264,3243.1,3243.0,5.09673992]
[1738274831611,3.1358264,3243.1,3241.6,0.51799663]
[1738274831612,0.7955,3242.4,3241.7,5.09673992]
[1738274831787,3.08432,3242.2,3241.7,5.09673992]
[1738274831982,3.08451,3242.0,3241.7,5.09673992]
[1738274832302,0.05179382,3241.9,3241.8,0.55]
[1738274832818,0.05179382,3241.9,3241.7,5.09673992]
[1738274833312,3.08451,3242.0,3241.8,0.55]
[1738274833613,3.08461,3241.9,3241.8,0.55]
[1738274833823,3.13640382,3241.9,3241.8,0.55]
[1738274834716,0.05179382,3241.9,3241.8,0.55]
[1738274838535,3.91432,3242.0,3241.8,0.55]
[1738274839036,0.05106217,3241.9,3241.8,0.55]
[1738274839446,3.91432,3242.0,3241.8,0.55]
[1738274839748,0.05106217,3241.9,3241.8,0.55]
[1738274840115,3.91432,3242.0,3241.8,0.55]
[1738274840610,0.05084974,3241.9,3241.8,0.55]
[1738274840810,3.91432,3242.0,3241.8,0.55]
[1738274841135,0.05084974,3241.9,3241.8,0.55]
[1738274841634,3.91432,3242.0,3241.8,0.55]
[1738274842012,0.05084974,3241.9,3241.8,0.55]
[1738274842698,3.13545974,3241.9,3241.8,0.55]
[1738274845752,0.05084974,3241.9,3241.8,0.55]
[1738274851024,3.13545974,3241.9,3241.8,0.55]
[1738274851268,0.05084974,3241.9,3241.8,0.55]
[1738274858202,3.13545974,3241.9,3241.8,0.55]
[1738274858410,0.05084974,3241.9,3241.8,0.55]
[1738274859203,3.13545974,3241.9,3241.8,0.55]
[1738274859506,0.05084974,3241.9,3241.8,0.55]
[1738274862916,3.0847,3241.8,3241.6,0.05640953]
[1738274863131,3.08527,3241.2,3241.1,5.09673992]
[1738274863327,3.88813,3241.1,3240.7,5.72653969]
[1738274863532,3.88813,3241.1,3240.6,0.86757165]
[1738274863533,3.08561,3240.9,3240.6,0.86757165]
[1738274863831,3.08561,3240.9,3240.5,0.55]
[1738274863991,0.0499973,3240.8,3240.5,0.55]
[1738274864303,3.08561,3240.9,3240.5,1.15357354]
[1738274864629,3.08576,3240.7,3240.5,0.60357354]
[1738274864790,0.7744,3240.6,3240.3,5.09673992]
[1738274864989,3.08595,3240.5,3240.3,5.09673992]
[1738274865430,0.04956942,3240.4,3240.3,5.09673992]
[1738274866833,3.13559942,3240.4,3240.3,5.09673992]
[1738274867038,0.04956942,3240.4,3240.3,5.09673992]
[1738274867200,3.08591,3240.6,3240.3,5.09673992]
[1738274867406,0.04956942,3240.4,3240.3,5.09673992]
[1738274867589,3.08591,3240.6,3240.3,5.09673992]
[1738274867788,0.04956942,3240.4,3240.3,5.09673992]
[1738274867988,3.08591,3240.6,3240.3,5.09673992]
[1738274868185,0.04956942,3240.4,3240.3,5.09673992]
[1738274868705,3.08591,3240.6,3240.3,5.09673992]
[1738274869029,0.04960856,3240.5,3240.3,5.09673992]
[1738274873127,3.13554856,3240.5,3240.3,5.09673992]
[1738274879061,0.04960856,3240.5,3240.4,0.55]
[1738274879418,3.0859,3240.6,3240.4,0.55]
[1738274879618,0.0491012,3240.5,3240.4,0.55]
[1738274880664,0.0491012,3240.5,3240.4,4.20070399]
[1738274881169,3.08537,3241.1,3240.4,9.29744391]
[1738274881330,3.08521,3241.3,3240.7,3.63568]
[1738274881517,3.1345544,3241.2,3240.7,8.76327349]
[1738274881726,3.1345544,3241.2,3240.7,8.73241992]
[1738274882071,3.1345544,3241.2,3240.7,10.20403691]
[1738274885055,3.08539,3241.1,3240.7,7.11835691]
[1738274885570,0.0475525,3241.0,3240.7,7.11835691]
[1738274885725,0.0475525,3241.0,3240.7,10.20410691]
[1738274885920,6.17048,3241.3,3240.7,10.20410691]
[1738274886126,3.08531,3241.2,3240.7,10.20410691]
[1738274886368,3.13294075,3241.2,3240.7,10.20410691]
[1738274891173,3.08537,3241.1,3240.7,7.11835691]
[1738274891466,3.08552,3241.0,3240.7,5.64673992]
[1738274891872,0.04768125,3240.9,3240.7,5.64673992]
[1738274892568,3.08562,3240.9,3240.8,2.03540013]
[1738274893063,3.08562,3240.9,3240.8,7.13214005]
[1738274893668,4.196282,3240.9,3240.8,5.09673992]
[1738274894171,4.21922877,3240.9,3240.8,5.09673992]